[Event "Late-Titled-Tuesday-Blitz-April-02-2024"]
[Site "Chess.com"]
[Date "2024.04.02"]
[Round "6"]
[White "Navyblue1"]
[Black "Laico"]
[Result "1/2-1/2"]
[WhiteElo "2273"]
[BlackElo "2395"]
[TimeControl "180+1"]
[EndTime "15:04:05 PDT"]
[Termination "Game drawn by repetition"]

1. d4 {[%clk 0:03:00.9]} 1... e6 {[%clk 0:02:52.2]} 2. c4 {[%clk 0:03:01.1]}
2... f5 {[%clk 0:02:52.7]} 3. a3 {[%clk 0:02:42.2]} 3... b6 {[%clk 0:02:52.7]}
4. e4 {[%clk 0:02:38.5]} 4... fxe4 {[%clk 0:02:52.2]} 5. Nc3 {[%clk 0:02:37.7]}
5... Bb7 {[%clk 0:02:51.9]} 6. d5 {[%clk 0:02:33.1]} 6... exd5 {[%clk 0:02:43]}
7. Qh5+ {[%clk 0:02:26.7]} 7... Ke7 {[%clk 0:02:05.6]} 8. cxd5 {[%clk
0:02:24.6]} 8... Nf6 {[%clk 0:01:56.6]} 9. Bg5 {[%clk 0:02:21.2]} 9... Qe8
{[%clk 0:01:56.1]} 10. Bxf6+ {[%clk 0:02:11.4]} 10... gxf6 {[%clk 0:01:53.7]}
11. Qxe8+ {[%clk 0:02:01.3]} 11... Kxe8 {[%clk 0:01:54.6]} 12. Nxe4 {[%clk
0:01:58.8]} 12... Bg7 {[%clk 0:01:54.1]} 13. O-O-O {[%clk 0:01:57.3]} 13... f5
{[%clk 0:01:54]} 14. Ng3 {[%clk 0:01:55]} 14... Rf8 {[%clk 0:01:49.3]} 15. Nf3
{[%clk 0:01:52.1]} 15... Na6 {[%clk 0:01:47.4]} 16. Bc4 {[%clk 0:01:49.3]} 16...
Nc5 {[%clk 0:01:46.4]} 17. Rhe1+ {[%clk 0:01:49.8]} 17... Kd8 {[%clk 0:01:43.1]}
18. Ng5 {[%clk 0:01:44.4]} 18... h6 {[%clk 0:01:41.2]} 19. Nf3 {[%clk
0:01:38.8]} 19... a5 {[%clk 0:01:41]} 20. Ne5 {[%clk 0:01:29.2]} 20... Ba6
{[%clk 0:01:29.8]} 21. Bxa6 {[%clk 0:01:27.5]} 21... Rxa6 {[%clk 0:01:30.7]} 22.
f3 {[%clk 0:01:20.1]} 22... Re8 {[%clk 0:01:16.1]} 23. f4 {[%clk 0:01:18.7]}
23... d6 {[%clk 0:01:16]} 24. Nxf5 {[%clk 0:01:14.5]} 24... Bxe5 {[%clk
0:01:03]} 25. fxe5 {[%clk 0:01:13.1]} 25... dxe5 {[%clk 0:01:03.1]} 26. Nxh6
{[%clk 0:01:11.8]} 26... e4 {[%clk 0:01:00.3]} 27. Nf7+ {[%clk 0:01:09.8]} 27...
Kc8 {[%clk 0:00:59]} 28. Ng5 {[%clk 0:01:03.8]} 28... Re5 {[%clk 0:00:43.3]} 29.
Ne6 {[%clk 0:00:54.5]} 29... Nxe6 {[%clk 0:00:35.9]} 30. dxe6 {[%clk 0:00:55.3]}
30... Rxe6 {[%clk 0:00:36.6]} 31. Rd4 {[%clk 0:00:54.9]} 31... e3 {[%clk
0:00:28.2]} 32. Rd3 {[%clk 0:00:54.7]} 32... b5 {[%clk 0:00:20.5]} 33. Rdxe3
{[%clk 0:00:53.9]} 33... Rac6+ {[%clk 0:00:20.3]} 34. Kb1 {[%clk 0:00:53.5]}
34... Rf6 {[%clk 0:00:20]} 35. R3e2 {[%clk 0:00:52.8]} 35... Kb7 {[%clk
0:00:18.5]} 36. g4 {[%clk 0:00:50.4]} 36... Rc4 {[%clk 0:00:16.6]} 37. Rg2
{[%clk 0:00:49.4]} 37... Rg6 {[%clk 0:00:16]} 38. g5 {[%clk 0:00:46.9]} 38...
Rh4 {[%clk 0:00:15]} 39. Re5 {[%clk 0:00:40.6]} 39... Kb6 {[%clk 0:00:15.2]} 40.
Rf2 {[%clk 0:00:33.9]} 40... Rh5 {[%clk 0:00:13.1]} 41. Rg2 {[%clk 0:00:23.8]}
41... c6 {[%clk 0:00:11.5]} 42. Kc2 {[%clk 0:00:20.2]} 42... Kc7 {[%clk
0:00:11.8]} 43. Kd2 {[%clk 0:00:19.7]} 43... Kd6 {[%clk 0:00:12.2]} 44. Rf5
{[%clk 0:00:20]} 44... Ke6 {[%clk 0:00:12.4]} 45. Rc5 {[%clk 0:00:19.1]} 45...
Kd6 {[%clk 0:00:11.9]} 46. Rf5 {[%clk 0:00:18.1]} 46... Ke6 {[%clk 0:00:12.3]}
47. Rc5 {[%clk 0:00:17.7]} 47... Kd6 {[%clk 0:00:12.6]} 48. Rf5 {[%clk
0:00:17.6]} 1/2-1/2

[Event "Late-Titled-Tuesday-Blitz-April-02-2024"]
[Site "Chess.com"]
[Date "2024.04.02"]
[Round "6"]
[White "Veganator13"]
[Black "Resignify"]
[Result "1-0"]
[WhiteElo "2283"]
[BlackElo "2229"]
[TimeControl "180+1"]
[EndTime "15:04:13 PDT"]
[Termination "Veganator13 won on time"]

1. c4 {[%clk 0:02:58.8]} 1... Nf6 {[%clk 0:02:59.6]} 2. g3 {[%clk 0:02:58.3]}
2... g6 {[%clk 0:02:59.9]} 3. Bg2 {[%clk 0:02:50.5]} 3... Bg7 {[%clk 0:03:00.3]}
4. Nc3 {[%clk 0:02:50.7]} 4... O-O {[%clk 0:03:00.3]} 5. e4 {[%clk 0:02:51.4]}
5... d6 {[%clk 0:03:00.8]} 6. Nge2 {[%clk 0:02:39.6]} 6... e5 {[%clk 0:03:00.1]}
7. d3 {[%clk 0:02:39.7]} 7... Nc6 {[%clk 0:02:59.6]} 8. O-O {[%clk 0:02:40.4]}
8... Rb8 {[%clk 0:02:55]} 9. h3 {[%clk 0:02:39.2]} 9... a6 {[%clk 0:02:54.9]}
10. Be3 {[%clk 0:02:38.7]} 10... Nd7 {[%clk 0:02:48.5]} 11. Rc1 {[%clk
0:02:37.8]} 11... Nd4 {[%clk 0:02:47.4]} 12. Qd2 {[%clk 0:02:35.4]} 12... Nc5
{[%clk 0:02:45.6]} 13. Kh2 {[%clk 0:02:34.4]} 13... a5 {[%clk 0:02:37.5]} 14.
Bh6 {[%clk 0:02:30.2]} 14... Bxh6 {[%clk 0:02:30.4]} 15. Qxh6 {[%clk 0:02:29.9]}
15... Nxe2 {[%clk 0:02:20.9]} 16. Nxe2 {[%clk 0:02:29.6]} 16... Nxd3 {[%clk
0:02:20.9]} 17. Rcd1 {[%clk 0:02:28.6]} 17... Nxb2 {[%clk 0:02:13.5]} 18. Rb1
{[%clk 0:02:21.8]} 18... Nxc4 {[%clk 0:02:09]} 19. f4 {[%clk 0:02:22.7]} 19...
f6 {[%clk 0:01:02]} 20. h4 {[%clk 0:02:18.4]} 20... Nd2 {[%clk 0:00:54.6]} 21.
f5 {[%clk 0:02:16.6]} 21... Nxb1 {[%clk 0:00:44.1]} 22. fxg6 {[%clk 0:02:15.5]}
22... Qd7 {[%clk 0:00:42.9]} 23. Rxb1 {[%clk 0:02:11.4]} 23... Qg7 {[%clk
0:00:42.4]} 24. gxh7+ {[%clk 0:02:10.8]} 24... Qxh7 {[%clk 0:00:41.6]} 25. Qe3
{[%clk 0:02:11.7]} 25... Bg4 {[%clk 0:00:36.9]} 26. Nc3 {[%clk 0:02:11.3]} 26...
Be6 {[%clk 0:00:32.2]} 27. Nb5 {[%clk 0:02:06]} 27... b6 {[%clk 0:00:19.5]} 28.
Rc1 {[%clk 0:02:01.7]} 28... Rf7 {[%clk 0:00:19.4]} 29. a4 {[%clk 0:02:00.2]}
29... Rg7 {[%clk 0:00:18.9]} 30. Rc3 {[%clk 0:01:59.3]} 30... Kh8 {[%clk
0:00:18.6]} 31. Qc1 {[%clk 0:01:58.6]} 31... Rc8 {[%clk 0:00:15.4]} 32. Bf1
{[%clk 0:01:56.8]} 32... Qg6 {[%clk 0:00:10.5]} 33. Bg2 {[%clk 0:01:50.8]} 33...
Kh7 {[%clk 0:00:10.5]} 34. Bh1 {[%clk 0:01:49.1]} 34... Qh6 {[%clk 0:00:10.4]}
35. Qc2 {[%clk 0:01:47.5]} 35... Qg6 {[%clk 0:00:10.1]} 36. Bg2 {[%clk
0:01:47.2]} 36... f5 {[%clk 0:00:07.9]} 37. exf5 {[%clk 0:01:24.6]} 37... Bxf5
{[%clk 0:00:07.8]} 38. Qf2 {[%clk 0:01:25.5]} 38... Rf7 {[%clk 0:00:05.4]} 39.
Qe3 {[%clk 0:01:21.4]} 39... Be6 {[%clk 0:00:03.9]} 40. Be4 {[%clk 0:01:17.6]}
40... Bf5 {[%clk 0:00:04.2]} 41. Bd5 {[%clk 0:01:09.5]} 41... Rg7 {[%clk
0:00:03.4]} 42. Qe2 {[%clk 0:01:04.4]} 42... Qg4 {[%clk 0:00:03.1]} 43. Qg2
{[%clk 0:00:58.6]} 43... Qxa4 {[%clk 0:00:02]} 44. Bc6 {[%clk 0:00:55.4]} 44...
Qg4 {[%clk 0:00:01.6]} 45. Bf3 {[%clk 0:00:52.4]} 45... Rcg8 {[%clk 0:00:02.2]}
46. Bxg4 {[%clk 0:00:51.9]} 46... Rxg4 {[%clk 0:00:02.6]} 47. Nxc7 {[%clk
0:00:52.1]} 47... R4g7 {[%clk 0:00:02.1]} 48. Nd5 {[%clk 0:00:51.9]} 1-0

[Event "Late-Titled-Tuesday-Blitz-April-02-2024"]
[Site "Chess.com"]
[Date "2024.04.02"]
[Round "6"]
[White "GP9isback23"]
[Black "GMKrikor"]
[Result "0-1"]
[WhiteElo "2637"]
[BlackElo "2879"]
[TimeControl "180+1"]
[EndTime "15:04:15 PDT"]
[Termination "GMKrikor won by resignation"]

1. d4 {[%clk 0:02:59.7]} 1... Nf6 {[%clk 0:02:59.7]} 2. Nf3 {[%clk 0:03:00]}
2... g6 {[%clk 0:02:58.4]} 3. e3 {[%clk 0:03:00.2]} 3... Bg7 {[%clk 0:02:58.4]}
4. Be2 {[%clk 0:03:01.1]} 4... O-O {[%clk 0:02:58.2]} 5. O-O {[%clk 0:03:02]}
5... c5 {[%clk 0:02:57.2]} 6. c3 {[%clk 0:03:01.3]} 6... Qc7 {[%clk 0:02:54.7]}
7. b4 {[%clk 0:02:56.7]} 7... b6 {[%clk 0:02:48]} 8. Bb2 {[%clk 0:02:54.3]} 8...
d5 {[%clk 0:02:45]} 9. Nbd2 {[%clk 0:02:46]} 9... c4 {[%clk 0:02:35.7]} 10. Ne5
{[%clk 0:02:38.7]} 10... Nc6 {[%clk 0:01:53.1]} 11. f4 {[%clk 0:02:34.5]} 11...
e6 {[%clk 0:01:48.8]} 12. Bf3 {[%clk 0:02:31.9]} 12... Bb7 {[%clk 0:01:47.5]}
13. Qe2 {[%clk 0:02:09.9]} 13... Ne7 {[%clk 0:01:47]} 14. g4 {[%clk 0:02:03.9]}
14... b5 {[%clk 0:01:34.9]} 15. Kh1 {[%clk 0:01:50.6]} 15... Ne4 {[%clk
0:01:34]} 16. Bxe4 {[%clk 0:01:13.4]} 16... dxe4 {[%clk 0:01:32.3]} 17. g5
{[%clk 0:01:14]} 17... f6 {[%clk 0:01:17.5]} 18. gxf6 {[%clk 0:01:13.2]} 18...
Bxf6 {[%clk 0:01:18.4]} 19. Rg1 {[%clk 0:01:08]} 19... Nf5 {[%clk 0:01:18.5]}
20. Rg4 {[%clk 0:00:56.2]} 20... Qg7 {[%clk 0:00:45.5]} 21. Rag1 {[%clk
0:00:52.6]} 21... Bxe5 {[%clk 0:00:45.2]} 22. fxe5 {[%clk 0:00:49.4]} 22... Qh6
{[%clk 0:00:44.7]} 23. Nf1 {[%clk 0:00:38.1]} 23... Nh4 {[%clk 0:00:37.3]} 24.
Bc1 {[%clk 0:00:33.3]} 24... Nf3 {[%clk 0:00:32]} 25. R1g2 {[%clk 0:00:30.7]}
25... Rf7 {[%clk 0:00:31.4]} 26. Ng3 {[%clk 0:00:25.2]} 26... Raf8 {[%clk
0:00:30.3]} 27. Rf4 {[%clk 0:00:18.8]} 27... Rxf4 {[%clk 0:00:09.6]} 28. exf4
{[%clk 0:00:19.7]} 28... e3 {[%clk 0:00:10.5]} 29. Bxe3 {[%clk 0:00:11.8]} 29...
Nh4 {[%clk 0:00:10.6]} 30. f5 {[%clk 0:00:09.3]} 30... Qg7 {[%clk 0:00:07.3]}
31. f6 {[%clk 0:00:06.1]} 31... Qd7 {[%clk 0:00:06.6]} 32. Kg1 {[%clk 0:00:06]}
32... Nxg2 {[%clk 0:00:05.5]} 33. Bh6 {[%clk 0:00:05.2]} 33... Rf7 {[%clk
0:00:06]} 34. Ne4 {[%clk 0:00:05.4]} 34... Qd5 {[%clk 0:00:03.6]} 35. Kxg2
{[%clk 0:00:01.7]} 35... Qxe4+ {[%clk 0:00:03.3]} 36. Qxe4 {[%clk 0:00:02.6]}
36... Bxe4+ {[%clk 0:00:03.6]} 37. Kf2 {[%clk 0:00:03.5]} 37... Bd5 {[%clk
0:00:04.1]} 38. a3 {[%clk 0:00:03.6]} 38... a5 {[%clk 0:00:04.2]} 39. Ke3 {[%clk
0:00:03.7]} 39... axb4 {[%clk 0:00:04.4]} 40. axb4 {[%clk 0:00:04.4]} 40... Ra7
{[%clk 0:00:04.7]} 41. Ke2 {[%clk 0:00:04.2]} 41... Kf7 {[%clk 0:00:05.4]} 42.
Bd2 {[%clk 0:00:04.9]} 42... Ra2 {[%clk 0:00:05.5]} 43. Ke3 {[%clk 0:00:05.5]}
43... g5 {[%clk 0:00:05.5]} 0-1

[Event "Late-Titled-Tuesday-Blitz-April-02-2024"]
[Site "Chess.com"]
[Date "2024.04.02"]
[Round "6"]
[White "Andrei_Skvortsov"]
[Black "flawian2008"]
[Result "0-1"]
[WhiteElo "2652"]
[BlackElo "2541"]
[TimeControl "180+1"]
[EndTime "15:04:17 PDT"]
[Termination "flawian2008 won by resignation"]

1. e4 {[%clk 0:03:00.9]} 1... c5 {[%clk 0:03:00.3]} 2. d4 {[%clk 0:03:01.1]}
2... cxd4 {[%clk 0:03:00.3]} 3. Qxd4 {[%clk 0:03:02]} 3... Nc6 {[%clk
0:03:00.4]} 4. Qd3 {[%clk 0:03:02.9]} 4... Nf6 {[%clk 0:02:59.7]} 5. Nc3 {[%clk
0:03:03.6]} 5... d6 {[%clk 0:03:00]} 6. Nf3 {[%clk 0:03:04.1]} 6... g6 {[%clk
0:03:00.1]} 7. Be2 {[%clk 0:03:04.7]} 7... Bg7 {[%clk 0:03:00.7]} 8. O-O {[%clk
0:03:05.4]} 8... O-O {[%clk 0:03:01.4]} 9. Nd5 {[%clk 0:03:05.3]} 9... Bg4
{[%clk 0:03:01.1]} 10. c3 {[%clk 0:03:03.2]} 10... Nd7 {[%clk 0:03:01.5]} 11.
Bg5 {[%clk 0:03:02]} 11... h6 {[%clk 0:02:53.8]} 12. Bh4 {[%clk 0:03:01.8]}
12... g5 {[%clk 0:02:54]} 13. Bg3 {[%clk 0:03:01.9]} 13... Nde5 {[%clk
0:02:47.6]} 14. Nxe5 {[%clk 0:03:00.2]} 14... Nxe5 {[%clk 0:02:47.7]} 15. Qc2
{[%clk 0:02:55.6]} 15... Bxe2 {[%clk 0:02:37.9]} 16. Qxe2 {[%clk 0:02:56.5]}
16... e6 {[%clk 0:02:38.6]} 17. Ne3 {[%clk 0:02:56]} 17... Ng6 {[%clk
0:02:31.8]} 18. Rfd1 {[%clk 0:02:50]} 18... Nf4 {[%clk 0:02:25.4]} 19. Qb5
{[%clk 0:02:46.3]} 19... Qe7 {[%clk 0:02:02.8]} 20. Bxf4 {[%clk 0:02:42]} 20...
gxf4 {[%clk 0:02:02]} 21. Nc4 {[%clk 0:02:39.5]} 21... Rfd8 {[%clk 0:02:01.1]}
22. Nd2 {[%clk 0:02:36.5]} 22... d5 {[%clk 0:01:58.4]} 23. exd5 {[%clk 0:02:36]}
23... Rxd5 {[%clk 0:01:58.4]} 24. Qe2 {[%clk 0:02:36.6]} 24... Rad8 {[%clk
0:01:57.7]} 25. Nf3 {[%clk 0:02:37.1]} 25... Qd6 {[%clk 0:01:49.2]} 26. Re1
{[%clk 0:02:37.1]} 26... e5 {[%clk 0:01:42.4]} 27. Qe4 {[%clk 0:02:35.9]} 27...
Qe6 {[%clk 0:01:40]} 28. h3 {[%clk 0:02:28.5]} 28... f5 {[%clk 0:01:39.4]} 29.
Qxf4 {[%clk 0:02:28]} 29... e4 {[%clk 0:01:30.3]} 30. Qg3 {[%clk 0:02:12.3]}
30... Kh7 {[%clk 0:01:25]} 31. Qh4 {[%clk 0:01:50.6]} 31... Qg6 {[%clk
0:01:16.5]} 32. Nh2 {[%clk 0:01:48.4]} 32... Bf6 {[%clk 0:01:03.9]} 33. Qf4
{[%clk 0:01:44.7]} 33... Bg5 {[%clk 0:00:58.1]} 34. Qc7+ {[%clk 0:01:37.2]}
34... R8d7 {[%clk 0:00:58.3]} 35. Qc4 {[%clk 0:01:37.7]} 35... Rd2 {[%clk
0:00:53.2]} 36. Re2 {[%clk 0:01:34.7]} 36... Rd1+ {[%clk 0:00:47.7]} 37. Rxd1
{[%clk 0:01:23.5]} 37... Rxd1+ {[%clk 0:00:48.6]} 38. Nf1 {[%clk 0:01:22.5]}
38... Rd7 {[%clk 0:00:49]} 39. g3 {[%clk 0:01:06.5]} 39... h5 {[%clk 0:00:45.6]}
40. Kh2 {[%clk 0:00:55.4]} 40... h4 {[%clk 0:00:44.9]} 41. g4 {[%clk 0:00:56]}
41... fxg4 {[%clk 0:00:35.7]} 42. Qxe4 {[%clk 0:00:52.4]} 42... Rd1 {[%clk
0:00:33.8]} 43. Qxb7+ {[%clk 0:00:45.5]} 43... Kh6 {[%clk 0:00:31.6]} 44. Ne3
{[%clk 0:00:22.9]} 44... g3+ {[%clk 0:00:28.6]} 45. Kg2 {[%clk 0:00:21.5]} 45...
Bxe3 {[%clk 0:00:22.8]} 46. fxe3 {[%clk 0:00:17.9]} 46... Qf6 {[%clk 0:00:19.3]}
47. Qf3 {[%clk 0:00:05.3]} 47... Rg1+ {[%clk 0:00:19.5]} 0-1

[Event "Late-Titled-Tuesday-Blitz-April-02-2024"]
[Site "Chess.com"]
[Date "2024.04.02"]
[Round "6"]
[White "DinaBelenkaya"]
[Black "GlavkonVVS"]
[Result "0-1"]
[WhiteElo "2455"]
[BlackElo "2616"]
[TimeControl "180+1"]
[EndTime "15:04:19 PDT"]
[Termination "GlavkonVVS won by resignation"]

1. e4 {[%clk 0:02:56.8]} 1... Nf6 {[%clk 0:03:00.4]} 2. e5 {[%clk 0:02:56]} 2...
Nd5 {[%clk 0:03:00.3]} 3. Nf3 {[%clk 0:02:55.5]} 3... d6 {[%clk 0:03:00.5]} 4.
d4 {[%clk 0:02:55.8]} 4... Bg4 {[%clk 0:03:00]} 5. Be2 {[%clk 0:02:55.1]} 5...
e6 {[%clk 0:03:00.1]} 6. O-O {[%clk 0:02:54.5]} 6... Be7 {[%clk 0:03:00.5]} 7.
c4 {[%clk 0:02:53.3]} 7... Nb6 {[%clk 0:03:00.6]} 8. exd6 {[%clk 0:02:52.2]}
8... cxd6 {[%clk 0:03:00.4]} 9. Nbd2 {[%clk 0:02:51.4]} 9... O-O {[%clk
0:02:58.3]} 10. b3 {[%clk 0:02:50.6]} 10... d5 {[%clk 0:02:58.2]} 11. c5 {[%clk
0:02:50.2]} 11... Nc8 {[%clk 0:02:57.9]} 12. b4 {[%clk 0:02:49.6]} 12... Nc6
{[%clk 0:02:58]} 13. b5 {[%clk 0:02:47.9]} 13... Na5 {[%clk 0:02:56.3]} 14. a4
{[%clk 0:02:46.4]} 14... Bf6 {[%clk 0:02:55.5]} 15. Ba3 {[%clk 0:02:42.7]} 15...
Re8 {[%clk 0:02:55.1]} 16. Bb4 {[%clk 0:02:33.6]} 16... b6 {[%clk 0:02:47.1]}
17. Bxa5 {[%clk 0:02:32]} 17... bxa5 {[%clk 0:02:47.4]} 18. Rc1 {[%clk
0:02:27.2]} 18... Ne7 {[%clk 0:02:45]} 19. Qb3 {[%clk 0:02:26.3]} 19... Nf5
{[%clk 0:02:40.6]} 20. Qd3 {[%clk 0:02:18.8]} 20... Bh5 {[%clk 0:02:29.6]} 21.
h3 {[%clk 0:02:17.8]} 21... Bg6 {[%clk 0:02:29.4]} 22. Qc3 {[%clk 0:02:15]}
22... Rc8 {[%clk 0:02:09.3]} 23. Bd3 {[%clk 0:02:12.9]} 23... Nd6 {[%clk
0:01:57.9]} 24. Bxg6 {[%clk 0:02:10.5]} 24... hxg6 {[%clk 0:01:57.5]} 25. Qd3
{[%clk 0:02:08]} 25... Nf5 {[%clk 0:01:45.6]} 26. g4 {[%clk 0:02:07.3]} 26...
Nh4 {[%clk 0:01:43.6]} 27. Nxh4 {[%clk 0:02:06.9]} 27... Bxh4 {[%clk 0:01:43.2]}
28. Nf3 {[%clk 0:01:59.5]} 28... Bf6 {[%clk 0:01:38.2]} 29. c6 {[%clk
0:01:59.3]} 29... Qc7 {[%clk 0:01:30.6]} 30. Qd2 {[%clk 0:01:50.5]} 30... Rcd8
{[%clk 0:01:11.5]} 31. Kg2 {[%clk 0:01:50]} 31... g5 {[%clk 0:01:10.9]} 32. Rfd1
{[%clk 0:01:35.8]} 32... g6 {[%clk 0:01:05]} 33. Nxg5 {[%clk 0:01:34.6]} 33...
e5 {[%clk 0:01:04.5]} 34. Nf3 {[%clk 0:01:24.2]} 34... exd4 {[%clk 0:01:02]} 35.
Nxd4 {[%clk 0:01:24.2]} 35... Re4 {[%clk 0:01:01.8]} 36. Nf3 {[%clk 0:01:15.4]}
36... Rxa4 {[%clk 0:01:00.9]} 37. Rc5 {[%clk 0:01:05.2]} 37... d4 {[%clk
0:00:53.4]} 38. Qc2 {[%clk 0:01:02]} 38... Rb4 {[%clk 0:00:50.6]} 39. Rd3 {[%clk
0:00:57.1]} 39... Rb8 {[%clk 0:00:39.3]} 40. Qe2 {[%clk 0:00:41.6]} 40... R4xb5
{[%clk 0:00:31.5]} 41. Rxb5 {[%clk 0:00:42.5]} 41... Rxb5 {[%clk 0:00:31.3]} 42.
Qe8+ {[%clk 0:00:43.2]} 42... Kg7 {[%clk 0:00:30.3]} 43. Nxd4 {[%clk 0:00:36.1]}
43... Re5 {[%clk 0:00:23.6]} 44. Nb5 {[%clk 0:00:32]} 44... Qb6 {[%clk 0:00:17]}
45. Nd6 {[%clk 0:00:10.2]} 45... Rxe8 {[%clk 0:00:15.1]} 46. Nxe8+ {[%clk
0:00:11.1]} 46... Kf8 {[%clk 0:00:15.6]} 47. Nxf6 {[%clk 0:00:06.8]} 47... Qxc6+
{[%clk 0:00:15.7]} 48. Nd5 {[%clk 0:00:07.1]} 48... a4 {[%clk 0:00:15.7]} 49. f3
{[%clk 0:00:05.2]} 49... Qc2+ {[%clk 0:00:14.2]} 50. Kg3 {[%clk 0:00:04.1]}
50... Qxd3 {[%clk 0:00:14.5]} 0-1

[Event "Late-Titled-Tuesday-Blitz-April-02-2024"]
[Site "Chess.com"]
[Date "2024.04.02"]
[Round "6"]
[White "Walter_White_Poland"]
[Black "AlexeiShirov"]
[Result "0-1"]
[WhiteElo "2431"]
[BlackElo "2792"]
[TimeControl "180+1"]
[EndTime "15:04:21 PDT"]
[Termination "AlexeiShirov won on time"]

1. e4 {[%clk 0:03:00.9]} 1... e5 {[%clk 0:02:59.8]} 2. Nf3 {[%clk 0:03:00.9]}
2... Nc6 {[%clk 0:02:59.9]} 3. Bb5 {[%clk 0:03:00.9]} 3... a6 {[%clk 0:02:59.2]}
4. Ba4 {[%clk 0:03:01.4]} 4... Nf6 {[%clk 0:02:59.4]} 5. O-O {[%clk 0:03:00.3]}
5... b5 {[%clk 0:02:59.9]} 6. Bb3 {[%clk 0:02:59.9]} 6... Bc5 {[%clk 0:03:00.5]}
7. Nc3 {[%clk 0:03:00]} 7... d6 {[%clk 0:02:57.5]} 8. Nd5 {[%clk 0:02:59.3]}
8... Rb8 {[%clk 0:02:46.7]} 9. d4 {[%clk 0:02:56.3]} 9... Nxd4 {[%clk
0:02:44.5]} 10. Bg5 {[%clk 0:02:55.2]} 10... Bg4 {[%clk 0:02:41]} 11. Bxf6
{[%clk 0:02:19]} 11... gxf6 {[%clk 0:02:39.1]} 12. Nxd4 {[%clk 0:02:18.9]} 12...
Bxd1 {[%clk 0:02:33.8]} 13. Nc6 {[%clk 0:02:18.6]} 13... Qc8 {[%clk 0:01:54.6]}
14. Nxf6+ {[%clk 0:02:17.9]} 14... Kf8 {[%clk 0:01:52.1]} 15. Nxb8 {[%clk
0:02:07.4]} 15... Be2 {[%clk 0:01:44.9]} 16. Nbd7+ {[%clk 0:02:01.5]} 16... Kg7
{[%clk 0:01:33]} 17. Rfe1 {[%clk 0:02:01.3]} 17... Bc4 {[%clk 0:01:27.1]} 18.
Bxc4 {[%clk 0:02:01.2]} 18... bxc4 {[%clk 0:01:26.6]} 19. Rad1 {[%clk
0:01:50.4]} 19... Ba7 {[%clk 0:01:19.4]} 20. Nh5+ {[%clk 0:01:27.3]} 20... Kh6
{[%clk 0:01:15.4]} 21. Ndf6 {[%clk 0:01:25.9]} 21... Qe6 {[%clk 0:00:59.3]} 22.
g4 {[%clk 0:01:16]} 22... Kg5 {[%clk 0:00:47.9]} 23. Kg2 {[%clk 0:01:09.8]}
23... Rg8 {[%clk 0:00:31.7]} 24. Kg3 {[%clk 0:00:54]} 24... Bxf2+ {[%clk
0:00:27.5]} 25. Kxf2 {[%clk 0:00:53.2]} 25... Rg6 {[%clk 0:00:27.3]} 26. Nxh7+
{[%clk 0:00:35.8]} 26... Kh4 {[%clk 0:00:22]} 27. N7f6 {[%clk 0:00:13.4]} 27...
Rxf6+ {[%clk 0:00:21.7]} 28. Nxf6 {[%clk 0:00:13.4]} 28... Qxf6+ {[%clk
0:00:22.1]} 29. Ke2 {[%clk 0:00:14.1]} 29... Qf4 {[%clk 0:00:22.3]} 30. Rd2
{[%clk 0:00:11.6]} 30... Qxe4+ {[%clk 0:00:22]} 31. Kd1 {[%clk 0:00:11.7]} 31...
Qf3+ {[%clk 0:00:22.2]} 32. Kc1 {[%clk 0:00:11.4]} 32... c3 {[%clk 0:00:22.8]}
33. bxc3 {[%clk 0:00:11.1]} 33... Qxc3 {[%clk 0:00:22.9]} 34. Kd1 {[%clk
0:00:10.1]} 34... Qa1+ {[%clk 0:00:22.8]} 35. Ke2 {[%clk 0:00:10]} 35... Qxa2
{[%clk 0:00:23.4]} 36. Kf1 {[%clk 0:00:07.4]} 36... Qc4+ {[%clk 0:00:23.8]} 37.
Ree2 {[%clk 0:00:07.4]} 37... Qf4+ {[%clk 0:00:23.5]} 38. Kg1 {[%clk 0:00:07.7]}
38... a5 {[%clk 0:00:23.6]} 39. Rf2 {[%clk 0:00:07.5]} 39... Qe3 {[%clk
0:00:23.5]} 40. Kg2 {[%clk 0:00:07.3]} 40... Qh3+ {[%clk 0:00:22.2]} 41. Kg1
{[%clk 0:00:07]} 41... a4 {[%clk 0:00:22.8]} 42. Rd3 {[%clk 0:00:07.6]} 42...
Qxg4+ {[%clk 0:00:22.7]} 43. Rg3 {[%clk 0:00:07.6]} 43... Qd1+ {[%clk
0:00:23.2]} 44. Kg2 {[%clk 0:00:07.7]} 44... Qd5+ {[%clk 0:00:23.2]} 45. Kg1
{[%clk 0:00:07.5]} 45... a3 {[%clk 0:00:21.9]} 46. Rf6 {[%clk 0:00:07.2]} 46...
Qd1+ {[%clk 0:00:21.3]} 47. Kg2 {[%clk 0:00:07.6]} 47... Qxc2+ {[%clk
0:00:21.6]} 48. Kg1 {[%clk 0:00:07.8]} 48... Qb1+ {[%clk 0:00:21.8]} 49. Kg2
{[%clk 0:00:08]} 49... Qe4+ {[%clk 0:00:21.5]} 50. Kg1 {[%clk 0:00:07.8]} 50...
Kh5 {[%clk 0:00:21.8]} 51. Rxf7 {[%clk 0:00:06.2]} 51... a2 {[%clk 0:00:21.5]}
0-1